[Event "Gaprindashvili Cup Open II Stage 2020"]
[Site "Online"]
[Date "2020.11.08"]
[Round "1.2"]
[White "Mindiashvili, Tengiz"]
[Black "Paichadze, Luka"]
[Result "0-1"]
[ECO "A01"]
[WhiteElo "1923"]
[BlackElo "2565"]
[Annotator "ChessBase"]
[PlyCount "64"]
[EventDate "2020.11.04"]
[EventType "swiss"]
[SourceTitle "playchess.com"]
[Source "ChessBase"]
[SourceQuality "1"]
[TimeControl "1500+5"]

1. b3 {[%emt 0:00:00]} a5 {[%emt 0:00:15]} 2. a4 {[%emt 0:00:43]} e5 {[%emt 0:00:18]} 3. Bb2 {[%emt 0:00:07]} Nc6 {[%emt 0:00:03]} 4. e3 {[%emt 0:00:03]} d6 {[%emt 0:00:19]} 5. Bb5 {[%emt 0:00:05]} Bd7 {[%emt 0:00:19]} 6. Ne2 {[%emt 0:00:13]} h5 {[%emt 0:00:05]} 7. f4 {[%emt 0:00:13]} Nge7 {[%emt 0:00:59]} 8. O-O {[%emt 0:00:08]} h4 {[%emt 0:00:06]} 9. Na3 {[%emt 0:00:18]} h3 {[%emt 0:00:08]} 10. g3 {[%emt 0:00:05]} e4 {[%emt 0:00:31]} 11. Nc4 {[%emt 0:00:23]} f6 {[%emt 0:00:23]} 12. Nd4 {[%emt 0:01:14]} d5 {[%emt 0:00:12]} 13. Na3 {[%emt 0:00:12]} Nxd4 {[%emt 0:00:04]} 14. Bxd7+ {[%emt 0:00:03]} Qxd7 {[%emt 0:00:03]} 15. Bxd4 {[%emt 0:00:02]} Nf5 {[%emt 0:00:03]} 16. Bb2 {[%emt 0:00:23]} Kf7 {[%emt 0:00:11]} 17. Nb5 {[%emt 0:00:32]} Bc5 {[%emt 0:00:20]} 18. Qg4 {[%emt 0:00:13]} g6 {[%emt 0:00:11]} 19. Nd4 {[%emt 0:00:15]} Bxd4 {[%emt 0:00:11]} 20. Bxd4 {[%emt 0:00:04]} b6 {[%emt 0:00:40]} 21. Bb2 {[%emt 0:00:25]} c5 {[%emt 0:00:07]} 22. Rfe1 {[%emt 0:02:04]} Qc6 {[%emt 0:00:21]} 23. Qe2 {[%emt 0:00:21]} Rad8 {[%emt 0:00:10]} 24. d3 {[%emt 0:01:17]} d4 {[%emt 0:02:54]} 25. exd4 {[%emt 0:01:28]} e3 {[%emt 0:00:08]} 26. d5 {[%emt 0:02:06]} Qxd5 {[%emt 0:00:35]} 27. Rf1 {[%emt 0:01:24]} Nxg3 {[%emt 0:00:46]} 28. Qf3 {[%emt 0:00:04]} Nxf1 {[%emt 0:00:05]} 29. Qxd5+ {[%emt 0:00:04]} Rxd5 {[%emt 0:00:03]} 30. Rxf1 {[%emt 0:00:16]} Re8 {[%emt 0:00:14]} 31. Bc3 {[%emt 0:00:26]} Rf5 {[%emt 0:00:08]} 32. Rf3 {[%emt 0:00:34]} g5 {[%emt 0:00:28]} 0-1

[Event "Gaprindashvili Cup Open II Stage 2020"]
[Site "Online"]
[Date "2020.11.08"]
[Round "1.3"]
[White "Jojua, Davit"]
[Black "Didmanidze, Tengiz"]
[Result "1-0"]
[ECO "E90"]
[WhiteElo "2557"]
[BlackElo "1922"]
[Annotator "ChessBase"]
[PlyCount "97"]
[EventDate "2020.11.04"]
[EventType "swiss"]
[SourceTitle "playchess.com"]
[Source "ChessBase"]
[SourceQuality "1"]
[TimeControl "1500+5"]

1. d4 {[%emt 0:00:00]} Nf6 {[%emt 0:00:04]} 2. c4 {[%emt 0:00:03]} g6 {[%emt 0:00:01]} 3. Nc3 {[%emt 0:00:03]} Bg7 {[%emt 0:00:02]} 4. e4 {[%emt 0:00:01]} d6 {[%emt 0:00:02]} 5. Nf3 {[%emt 0:00:02]} O-O {[%emt 0:00:02]} 6. h3 {[%emt 0:00:02]} e5 {[%emt 0:00:11]} 7. d5 {[%emt 0:00:02]} a5 {[%emt 0:00:06]} 8. g4 {[%emt 0:00:03]} Na6 {[%emt 0:00:07]} 9. Be3 {[%emt 0:00:02]} Nc5 {[%emt 0:00:02]} 10. Nd2 {[%emt 0:00:03]} a4 {[%emt 0:00:07]} 11. Bxc5 {[%emt 0:01:20]} dxc5 {[%emt 0:00:04]} 12. Nxa4 {[%emt 0:00:02]} b6 {[%emt 0:00:16]} 13. Nc3 {[%emt 0:00:03]} Ne8 {[%emt 0:00:10]} 14. Bd3 {[%emt 0:00:04]} Nd6 {[%emt 0:00:15]} 15. Qe2 {[%emt 0:01:17]} f5 {[%emt 0:01:12]} 16. gxf5 {[%emt 0:00:13]} gxf5 {[%emt 0:00:03]} 17. O-O-O {[%emt 0:00:08]} Qh4 {[%emt 0:00:52]} 18. Kb1 {[%emt 0:00:48]} fxe4 {[%emt 0:01:45]} 19. Ndxe4 {[%emt 0:00:54]} Nf5 {[%emt 0:00:53]} 20. Nb5 {[%emt 0:01:34]} Nd4 {[%emt 0:00:28]} 21. Nxd4 {[%emt 0:00:04]} exd4 {[%emt 0:00:02]} 22. Rdg1 {[%emt 0:00:27]} Bf5 {[%emt 0:00:21]} 23. Ng5 {[%emt 0:01:26]} Qxf2 {[%emt 0:02:49]} 24. Qc2 {[%emt 0:04:06]} Qxc2+ {[%emt 0:00:18]} 25. Kxc2 {[%emt 0:00:02]} Bxd3+ {[%emt 0:00:45]} 26. Kxd3 {[%emt 0:00:02]} Kh8 {[%emt 0:00:25]} 27. Rf1 {[%emt 0:05:26]} h6 {[%emt 0:01:08]} 28. Ne6 {[%emt 0:00:35]} Rxf1 {[%emt 0:00:05]} 29. Rxf1 {[%emt 0:00:02]} Be5 {[%emt 0:00:04]} 30. Ke4 {[%emt 0:02:15]} Bd6 {[%emt 0:00:47]} 31. Rf7 {[%emt 0:01:37]} Rxa2 {[%emt 0:01:38]} 32. Nxc7 {[%emt 0:00:02]} Ra7 {[%emt 0:00:35]} 33. Rd7 {[%emt 0:00:40]} Bh2 {[%emt 0:01:02]} 34. Rd8+ {[%emt 0:00:32]} Kh7 {[%emt 0:01:05]} 35. Ne6 {[%emt 0:00:12]} Ra1 {[%emt 0:00:50]} 36. Rd7+ {[%emt 0:02:02]} Kg6 {[%emt 0:00:34]} 37. Rb7 {[%emt 0:00:05]} Re1+ {[%emt 0:00:38]} 38. Kd3 {[%emt 0:00:02]} Re3+ {[%emt 0:00:08]} 39. Kd2 {[%emt 0:00:12]} Rb3 {[%emt 0:00:15]} 40. Nxc5 {[%emt 0:00:28]} Rxb2+ {[%emt 0:00:45]} 41. Kd3 {[%emt 0:00:03]} Kf5 {[%emt 0:01:52]} 42. Rf7+ {[%emt 0:00:10]} Ke5 {[%emt 0:00:19]} 43. Nd7+ {[%emt 0:00:06]} Kd6 {[%emt 0:00:13]} 44. Kxd4 {[%emt 0:00:04]} Rb3 {[%emt 0:01:11]} 45. Nf6 {[%emt 0:00:10]} Bg1+ {[%emt 0:00:20]} 46. Ke4 {[%emt 0:00:03]} Rc3 {[%emt 0:00:56]} 47. Rd7+ {[%emt 0:00:24]} Kc5 {[%emt 0:00:04]} 48. Rc7+ {[%emt 0:00:02]} Kd6 {[%emt 0:02:08]} 49. Ne8# {[%emt 0:00:03]} 1-0

[Event "Gaprindashvili Cup Open II Stage 2020"]
[Site "Online"]
[Date "2020.11.08"]
[Round "1.4"]
[White "Adamia, Jaba"]
[Black "Pantsulaia, Levan"]
[Result "0-1"]
[ECO "A70"]
[WhiteElo "1899"]
[BlackElo "2553"]
[Annotator "ChessBase"]
[PlyCount "42"]
[EventDate "2020.11.04"]
[EventType "swiss"]
[SourceTitle "playchess.com"]
[Source "ChessBase"]
[SourceQuality "1"]
[TimeControl "1500+5"]

1. d4 {[%emt 0:00:00]} Nf6 {[%emt 0:00:05]} 2. c4 {[%emt 0:00:04]} c5 {[%emt 0:00:03]} 3. d5 {[%emt 0:00:02]} e6 {[%emt 0:00:02]} 4. Nc3 {[%emt 0:00:04]} exd5 {[%emt 0:00:05]} 5. cxd5 {[%emt 0:00:04]} d6 {[%emt 0:00:02]} 6. e4 {[%emt 0:00:10]} g6 {[%emt 0:00:03]} 7. Bd3 {[%emt 0:00:08]} Bg7 {[%emt 0:00:04]} 8. Nf3 {[%emt 0:00:06]} a6 {[%emt 0:00:06]} 9. a4 {[%emt 0:00:04]} Bg4 {[%emt 0:00:04]} 10. O-O {[%emt 0:00:10]} O-O {[%emt 0:00:05]} 11. h3 {[%emt 0:00:19]} Bxf3 {[%emt 0:00:04]} 12. Qxf3 {[%emt 0:00:04]} Nbd7 {[%emt 0:00:05]} 13. Qe2 {[%emt 0:00:42]} Re8 {[%emt 0:00:12]} 14. Bf4 {[%emt 0:00:59]} Qe7 {[%emt 0:01:04]} 15. Rfe1 {[%emt 0:00:36]} Nh5 {[%emt 0:00:10]} 16. Bh2 {[%emt 0:00:14]} Be5 {[%emt 0:00:41]} 17. Qd2 {[%emt 0:03:24]} Qh4 {[%emt 0:00:50]} 18. Bxe5 {[%emt 0:00:33]} Nxe5 {[%emt 0:00:06]} 19. Re3 {[%emt 0:00:34]} Nf4 {[%emt 0:00:47]} 20. Bf1 {[%emt 0:00:17]} Nxh3+ {[%emt 0:00:43]} 21. gxh3 {[%emt 0:01:10]} Qg5+ {[%emt 0:00:05]} 0-1

[Event "Gaprindashvili Cup Open II Stage 2020"]
[Site "Online"]
[Date "2020.11.08"]
[Round "1.5"]
[White "Shanava, Konstantine"]
[Black "Endeladze, Ramaz"]
[Result "1-0"]
[ECO "B06"]
[WhiteElo "2504"]
[BlackElo "1894"]
[Annotator "ChessBase"]
[PlyCount "51"]
[EventDate "2020.11.04"]
[EventType "swiss"]
[SourceTitle "playchess.com"]
[Source "ChessBase"]
[SourceQuality "1"]
[TimeControl "1500+5"]

1. e4 {[%emt 0:01:43]} g6 {[%emt 0:00:04]} 2. d4 {[%emt 0:00:02]} Bg7 {[%emt 0:00:05]} 3. Nc3 {[%emt 0:00:02]} d6 {[%emt 0:00:02]} 4. f4 {[%emt 0:00:03]} c6 {[%emt 0:01:07]} 5. Nf3 {[%emt 0:00:05]} Nd7 {[%emt 0:00:05]} 6. e5 {[%emt 0:04:18]} e6 {[%emt 0:02:59]} 7. Ne4 {[%emt 0:01:39]} Bf8 {[%emt 0:00:29]} 8. Nxd6+ {[%emt 0:01:22]} Bxd6 {[%emt 0:00:03]} 9. exd6 {[%emt 0:00:02]} Ndf6 {[%emt 0:00:04]} 10. Bd3 {[%emt 0:01:15]} Qxd6 {[%emt 0:00:05]} 11. O-O {[%emt 0:00:01]} Ne7 {[%emt 0:00:01]} 12. c3 {[%emt 0:00:03]} b6 {[%emt 0:00:08]} 13. Qe2 {[%emt 0:00:13]} Bb7 {[%emt 0:00:14]} 14. Ne5 {[%emt 0:00:20]} O-O {[%emt 0:00:57]} 15. Qf2 {[%emt 0:01:30]} Nd7 {[%emt 0:00:47]} 16. Qh4 {[%emt 0:02:21]} f6 {[%emt 0:00:19]} 17. Nc4 {[%emt 0:00:11]} Qc7 {[%emt 0:00:03]} 18. Qh3 {[%emt 0:00:02]} Nf5 {[%emt 0:00:08]} 19. g4 {[%emt 0:00:15]} Nd6 {[%emt 0:00:04]} 20. f5 {[%emt 0:00:04]} exf5 {[%emt 0:00:44]} 21. Bf4 {[%emt 0:00:07]} Ne5 {[%emt 0:02:46]} 22. dxe5 {[%emt 0:00:04]} Nxc4 {[%emt 0:00:09]} 23. Bxc4+ {[%emt 0:00:30]} Kh8 {[%emt 0:00:02]} 24. exf6 {[%emt 0:00:02]} Qd8 {[%emt 0:00:04]} 25. f7 {[%emt 0:00:10]} Qf6 {[%emt 0:00:07]} 26. Qg3 {[%emt 0:00:10]} 1-0

[Event "Gaprindashvili Cup Open II Stage 2020"]
[Site "Online"]
[Date "2020.11.08"]
[Round "1.6"]
[White "Qalichava, Akaki"]
[Black "Quparadze, Giga"]
[Result "0-1"]
[ECO "B42"]
[WhiteElo "1877"]
[BlackElo "2463"]
[Annotator "ChessBase"]
[PlyCount "122"]
[EventDate "2020.11.04"]
[EventType "swiss"]
[SourceTitle "playchess.com"]
[Source "ChessBase"]
[SourceQuality "1"]
[TimeControl "1500+5"]

1. e4 {[%emt 0:00:00]} c5 {[%emt 0:00:03]} 2. Nf3 {[%emt 0:00:04]} e6 {[%emt 0:00:01]} 3. d4 {[%emt 0:00:02]} cxd4 {[%emt 0:00:01]} 4. Nxd4 {[%emt 0:00:02]} a6 {[%emt 0:00:03]} 5. Bd3 {[%emt 0:00:03]} Nf6 {[%emt 0:00:05]} 6. O-O {[%emt 0:00:06]} Qc7 {[%emt 0:00:02]} 7. Qe2 {[%emt 0:00:02]} d6 {[%emt 0:00:02]} 8. c4 {[%emt 0:00:03]} g6 {[%emt 0:00:02]} 9. b3 {[%emt 0:00:07]} Bg7 {[%emt 0:00:02]} 10. Bb2 {[%emt 0:00:02]} O-O {[%emt 0:00:02]} 11. Nc3 {[%emt 0:00:20]} Nc6 {[%emt 0:00:06]} 12. Nxc6 {[%emt 0:00:22]} bxc6 {[%emt 0:00:02]} 13. Na4 {[%emt 0:00:04]} Nd7 {[%emt 0:00:51]} 14. Bxg7 {[%emt 0:00:13]} Kxg7 {[%emt 0:00:02]} 15. f4 {[%emt 0:00:21]} Kg8 {[%emt 0:00:24]} 16. Rad1 {[%emt 0:00:12]} Nf6 {[%emt 0:00:35]} 17. f5 {[%emt 0:00:46]} e5 {[%emt 0:00:21]} 18. Bc2 {[%emt 0:00:12]} Bb7 {[%emt 0:00:14]} 19. Rf3 {[%emt 0:02:31]} Rad8 {[%emt 0:00:26]} 20. Rdf1 {[%emt 0:00:13]} Qe7 {[%emt 0:00:05]} 21. Qf2 {[%emt 0:00:20]} Nh5 {[%emt 0:00:47]} 22. f6 {[%emt 0:03:41]} Qe6 {[%emt 0:00:04]} 23. Qh4 {[%emt 0:00:03]} Bc8 {[%emt 0:01:40]} 24. h3 {[%emt 0:01:59]} Kh8 {[%emt 0:00:32]} 25. Nc3 {[%emt 0:01:47]} Rg8 {[%emt 0:01:52]} 26. Qg5 {[%emt 0:01:47]} Nf4 {[%emt 0:00:45]} 27. Re1 {[%emt 0:01:44]} Qe8 {[%emt 0:01:01]} 28. Ne2 {[%emt 0:00:09]} Ne6 {[%emt 0:00:05]} 29. Qe3 {[%emt 0:00:31]} c5 {[%emt 0:00:09]} 30. Nc3 {[%emt 0:02:14]} Bb7 {[%emt 0:01:33]} 31. Bd3 {[%emt 0:00:47]} Nf4 {[%emt 0:02:16]} 32. Nd5 {[%emt 0:01:24]} Bxd5 {[%emt 0:00:13]} 33. exd5 {[%emt 0:00:02]} Nxd3 {[%emt 0:00:02]} 34. Qxd3 {[%emt 0:00:03]} a5 {[%emt 0:00:01]} 35. a4 {[%emt 0:00:42]} Qf8 {[%emt 0:00:07]} 36. Qd2 {[%emt 0:00:06]} Ra8 {[%emt 0:00:03]} 37. g4 {[%emt 0:00:17]} g5 {[%emt 0:01:05]} 38. Kf2 {[%emt 0:01:00]} Rg6 {[%emt 0:00:10]} 39. Qd3 {[%emt 0:00:02]} Rb8 {[%emt 0:00:40]} 40. Kg3 {[%emt 0:00:44]} Qh6 {[%emt 0:00:43]} 41. Ref1 {[%emt 0:00:03]} Qh4+ {[%emt 0:00:14]} 42. Kg2 {[%emt 0:00:02]} h5 {[%emt 0:00:12]} 43. Qf5 {[%emt 0:00:50]} hxg4 {[%emt 0:00:06]} 44. Qxg4 {[%emt 0:00:20]} Qxg4+ {[%emt 0:00:03]} 45. hxg4 {[%emt 0:00:02]} Rh6 {[%emt 0:00:02]} 46. Rg3 {[%emt 0:00:25]} Kh7 {[%emt 0:00:05]} 47. Rf5 {[%emt 0:01:15]} Kg6 {[%emt 0:00:05]} 48. Rff3 {[%emt 0:00:42]} Rh4 {[%emt 0:00:06]} 49. Kf2 {[%emt 0:00:03]} Rh2+ {[%emt 0:00:24]} 50. Kg1 {[%emt 0:00:08]} Rd2 {[%emt 0:00:13]} 51. Rh3 {[%emt 0:00:03]} Rd4 {[%emt 0:00:05]} 52. Rhg3 {[%emt 0:00:08]} Rf4 {[%emt 0:00:02]} 53. Kg2 {[%emt 0:00:05]} Kxf6 {[%emt 0:00:07]} 54. Re3 {[%emt 0:00:01]} Kg6 {[%emt 0:00:02]} 55. Re2 {[%emt 0:00:03]} Rh8 {[%emt 0:00:04]} 56. Kg1 {[%emt 0:00:05]} Rh4 {[%emt 0:00:02]} 57. Reg2 {[%emt 0:00:03]} Kf6 {[%emt 0:00:07]} 58. Rf2 {[%emt 0:00:09]} e4 {[%emt 0:00:01]} 59. Rfg2 {[%emt 0:00:14]} Ke5 {[%emt 0:00:02]} 60. Rf2 {[%emt 0:00:02]} Rhxg4 {[%emt 0:00:03]} 61. Rxg4 {[%emt 0:00:02]} Rxg4+ {[%emt 0:00:01]} 0-1

[Event "Gaprindashvili Cup Open II Stage 2020"]
[Site "Online"]
[Date "2020.11.08"]
[Round "1.8"]
[White "Liponava, Zurab"]
[Black "Kacharava, Nikolozi"]
[Result "1-0"]
[ECO "B09"]
[WhiteElo "1800"]
[BlackElo "2443"]
[Annotator "ChessBase"]
[PlyCount "51"]
[EventDate "2020.11.04"]
[EventType "swiss"]
[SourceTitle "playchess.com"]
[Source "ChessBase"]
[SourceQuality "1"]
[TimeControl "1500+5"]

1. e4 {[%emt 0:00:03]} d6 {[%emt 0:00:07]} 2. d4 {[%emt 0:00:11]} Nf6 {[%emt 0:00:01]} 3. Nc3 {[%emt 0:00:02]} g6 {[%emt 0:00:08]} 4. f4 {[%emt 0:00:04]} Bg7 {[%emt 0:00:02]} 5. Nf3 {[%emt 0:00:02]} O-O {[%emt 0:00:02]} 6. e5 {[%emt 0:00:02]} Nfd7 {[%emt 0:01:19]} 7. h4 {[%emt 0:00:07]} c5 {[%emt 0:00:56]} 8. h5 {[%emt 0:00:03]} cxd4 {[%emt 0:00:44]} 9. Qxd4 {[%emt 0:00:06]} dxe5 {[%emt 0:00:27]} 10. Qf2 {[%emt 0:00:04]} Qb6 {[%emt 0:03:11]} 11. Qh4 {[%emt 0:00:35]} exf4 {[%emt 0:02:02]} 12. hxg6 {[%emt 0:01:53]} Qxg6 {[%emt 0:00:06]} 13. Bd3 {[%emt 0:00:54]} f5 {[%emt 0:00:46]} 14. Bxf4 {[%emt 0:02:27]} h6 {[%emt 0:06:00]} 15. O-O-O {[%emt 0:00:30]} e5 {[%emt 0:00:30]} 16. Bc4+ {[%emt 0:00:57]} Kh8 {[%emt 0:00:13]} 17. Bxh6 {[%emt 0:01:48]} Bxh6+ {[%emt 0:00:20]} 18. Qxh6+ {[%emt 0:00:03]} Qxh6+ {[%emt 0:00:01]} 19. Rxh6+ {[%emt 0:00:03]} Kg7 {[%emt 0:00:01]} 20. Rdh1 {[%emt 0:00:10]} Nf6 {[%emt 0:01:53]} 21. Nxe5 {[%emt 0:00:20]} Re8 {[%emt 0:01:27]} 22. Rg6+ {[%emt 0:00:14]} Kf8 {[%emt 0:00:02]} 23. Rxf6+ {[%emt 0:00:11]} Ke7 {[%emt 0:00:01]} 24. Nd5+ {[%emt 0:01:42]} Kd8 {[%emt 0:00:03]} 25. Nf7+ {[%emt 0:00:19]} Kd7 {[%emt 0:00:01]} 26. Rd6# {[%emt 0:00:03]} 1-0

[Event "Gaprindashvili Cup Open II Stage 2020"]
[Site "Online"]
[Date "2020.11.08"]
[Round "1.9"]
[White "Bagaturov, Giorgi"]
[Black "kiladze, Luka"]
[Result "1/2-1/2"]
[ECO "E62"]
[WhiteElo "2431"]
[BlackElo "1786"]
[Annotator "ChessBase"]
[PlyCount "91"]
[EventDate "2020.11.04"]
[EventType "swiss"]
[SourceTitle "playchess.com"]
[Source "ChessBase"]
[SourceQuality "1"]
[TimeControl "1500+5"]

1. d4 {[%emt 0:00:10]} g6 {[%emt 0:00:06]} 2. Nf3 {[%emt 0:00:06]} Bg7 {[%emt 0:00:03]} 3. g3 {[%emt 0:00:03]} Nf6 {[%emt 0:00:03]} 4. Bg2 {[%emt 0:00:20]} O-O {[%emt 0:00:04]} 5. c4 {[%emt 0:00:16]} d6 {[%emt 0:00:02]} 6. O-O {[%emt 0:00:13]} c6 {[%emt 0:00:04]} 7. Nc3 {[%emt 0:00:22]} Qa5 {[%emt 0:00:02]} 8. h3 {[%emt 0:00:23]} e5 {[%emt 0:00:19]} 9. e4 {[%emt 0:00:06]} Qc7 {[%emt 0:00:12]} 10. Be3 {[%emt 0:00:12]} a6 {[%emt 0:00:29]} 11. Qc2 {[%emt 0:00:15]} Be6 {[%emt 0:00:05]} 12. d5 {[%emt 0:01:09]} Bd7 {[%emt 0:00:04]} 13. dxc6 {[%emt 0:01:48]} bxc6 {[%emt 0:00:51]} 14. Rfd1 {[%emt 0:00:26]} Be6 {[%emt 0:00:15]} 15. b3 {[%emt 0:00:59]} c5 {[%emt 0:00:37]} 16. Qd2 {[%emt 0:00:31]} Ne8 {[%emt 0:00:35]} 17. Nd5 {[%emt 0:00:28]} Qb7 {[%emt 0:00:20]} 18. Rab1 {[%emt 0:05:21]} Nc6 {[%emt 0:00:18]} 19. a3 {[%emt 0:00:26]} Nd4 {[%emt 0:01:04]} 20. Nxd4 {[%emt 0:00:56]} exd4 {[%emt 0:00:39]} 21. Bh6 {[%emt 0:00:28]} Bxd5 {[%emt 0:00:17]} 22. cxd5 {[%emt 0:00:17]} Qe7 {[%emt 0:00:31]} 23. b4 {[%emt 0:00:18]} Nc7 {[%emt 0:00:43]} 24. Bxg7 {[%emt 0:00:08]} Kxg7 {[%emt 0:00:03]} 25. bxc5 {[%emt 0:00:38]} dxc5 {[%emt 0:00:06]} 26. Qf4 {[%emt 0:00:13]} Nb5 {[%emt 0:00:09]} 27. Rbc1 {[%emt 0:00:42]} g5 {[%emt 0:02:06]} 28. Qf5 {[%emt 0:01:21]} Nd6 {[%emt 0:00:21]} 29. Qg4 {[%emt 0:00:03]} Rac8 {[%emt 0:01:16]} 30. h4 {[%emt 0:00:29]} h6 {[%emt 0:02:18]} 31. hxg5 {[%emt 0:00:40]} hxg5 {[%emt 0:01:10]} 32. Re1 {[%emt 0:01:11]} d3 {[%emt 0:00:34]} 33. Qd1 {[%emt 0:00:10]} c4 {[%emt 0:00:08]} 34. e5 {[%emt 0:00:09]} Nb5 {[%emt 0:00:29]} 35. Re4 {[%emt 0:01:16]} Nxa3 {[%emt 0:01:57]} 36. Qd2 {[%emt 0:00:46]} f5 {[%emt 0:00:43]} 37. d6 {[%emt 0:00:54]} Qe6 {[%emt 0:00:45]} 38. Qxg5+ {[%emt 0:00:34]} Qg6 {[%emt 0:00:03]} 39. Qxg6+ {[%emt 0:00:44]} Kxg6 {[%emt 0:00:03]} 40. Rd4 {[%emt 0:00:02]} Nc2 {[%emt 0:00:52]} 41. Rd5 {[%emt 0:00:03]} Nb4 {[%emt 0:00:02]} 42. Rd4 {[%emt 0:00:49]} Nc2 {[%emt 0:00:03]} 43. Rd5 {[%emt 0:00:06]} Nb4 {[%emt 0:00:03]} 44. Rd4 {[%emt 0:00:18]} Nc2 {[%emt 0:00:03]} 45. Rd5 {[%emt 0:00:04]} Nb4 {[%emt 0:00:03]} 46. Rd4 {[%emt 0:00:02]} 1/2-1/2

[Event "Gaprindashvili Cup Open II Stage 2020"]
[Site "Online"]
[Date "2020.11.08"]
[Round "1.10"]
[White "Tsereteli, Tornike"]
[Black "Petriashvili, Nikoloz"]
[Result "1/2-1/2"]
[ECO "C76"]
[WhiteElo "1765"]
[BlackElo "2425"]
[Annotator "ChessBase"]
[PlyCount "52"]
[EventDate "2020.11.04"]
[EventType "swiss"]
[SourceTitle "playchess.com"]
[Source "ChessBase"]
[SourceQuality "1"]
[TimeControl "1500+5"]

1. e4 {[%emt 0:00:02]} e5 {[%emt 0:00:02]} 2. Nf3 {[%emt 0:00:04]} Nc6 {[%emt 0:00:01]} 3. Bb5 {[%emt 0:00:03]} g6 {[%emt 0:00:01]} 4. O-O {[%emt 0:00:22]} Bg7 {[%emt 0:00:04]} 5. c3 {[%emt 0:00:03]} a6 {[%emt 0:00:03]} 6. Ba4 {[%emt 0:00:02]} d6 {[%emt 0:00:02]} 7. d4 {[%emt 0:00:03]} Bd7 {[%emt 0:00:01]} 8. h3 {[%emt 0:01:30]} Nf6 {[%emt 0:00:37]} 9. Re1 {[%emt 0:00:33]} O-O {[%emt 0:00:29]} 10. d5 {[%emt 0:00:18]} Ne7 {[%emt 0:00:07]} 11. Bxd7 {[%emt 0:00:02]} Qxd7 {[%emt 0:01:36]} 12. c4 {[%emt 0:00:03]} c5 {[%emt 0:02:24]} 13. dxc6 {[%emt 0:00:28]} Qxc6 {[%emt 0:00:20]} 14. Qe2 {[%emt 0:00:20]} Rfc8 {[%emt 0:00:55]} 15. Na3 {[%emt 0:00:12]} h6 {[%emt 0:00:44]} 16. Rb1 {[%emt 0:01:10]} Nd7 {[%emt 0:01:21]} 17. b3 {[%emt 0:00:45]} f5 {[%emt 0:01:08]} 18. exf5 {[%emt 0:00:28]} gxf5 {[%emt 0:00:06]} 19. Nc2 {[%emt 0:00:35]} b5 {[%emt 0:01:22]} 20. Ncd4 {[%emt 0:02:26]} exd4 {[%emt 0:01:45]} 21. Qe6+ {[%emt 0:01:59]} Kh7 {[%emt 0:02:53]} 22. Nxd4 {[%emt 0:00:32]} Qc7 {[%emt 0:01:36]} 23. Bxh6 {[%emt 0:00:45]} Nc5 {[%emt 0:07:13]} 24. Qxe7 {[%emt 0:03:34]} Qxe7 {[%emt 0:00:13]} 25. Rxe7 {[%emt 0:00:03]} Kxh6 {[%emt 0:00:03]} 26. Nxf5+ {[%emt 0:00:03]} Kg6 {[%emt 0:00:01]} 1/2-1/2

[Event "Gaprindashvili Cup Open II Stage 2020"]
[Site "Online"]
[Date "2020.11.08"]
[Round "1.11"]
[White "Lortkipanidze, Nodar"]
[Black "Chanturia, Lasha"]
[Result "1-0"]
[ECO "C26"]
[WhiteElo "2416"]
[BlackElo "1761"]
[Annotator "ChessBase"]
[PlyCount "117"]
[EventDate "2020.11.04"]
[EventType "swiss"]
[SourceTitle "playchess.com"]
[Source "ChessBase"]
[SourceQuality "1"]
[TimeControl "1500+5"]

1. e4 {[%emt 0:00:03]} e5 {[%emt 0:00:10]} 2. Nc3 {[%emt 0:00:03]} Nc6 {[%emt 0:00:04]} 3. g3 {[%emt 0:00:04]} Bc5 {[%emt 0:00:15]} 4. Bg2 {[%emt 0:00:05]} Nf6 {[%emt 0:00:10]} 5. Nge2 {[%emt 0:00:08]} a6 {[%emt 0:00:15]} 6. d3 {[%emt 0:00:16]} d6 {[%emt 0:00:04]} 7. h3 {[%emt 0:00:07]} Be6 {[%emt 0:00:04]} 8. Nd5 {[%emt 0:00:31]} Ne7 {[%emt 0:00:50]} 9. Nxf6+ {[%emt 0:00:08]} gxf6 {[%emt 0:00:03]} 10. Be3 {[%emt 0:02:18]} Bxe3 {[%emt 0:01:17]} 11. fxe3 {[%emt 0:00:04]} f5 {[%emt 0:00:09]} 12. Qd2 {[%emt 0:03:54]} fxe4 {[%emt 0:00:47]} 13. Bxe4 {[%emt 0:00:04]} d5 {[%emt 0:00:04]} 14. Bg2 {[%emt 0:00:02]} Qd6 {[%emt 0:00:21]} 15. O-O {[%emt 0:00:27]} O-O-O {[%emt 0:00:12]} 16. b4 {[%emt 0:00:05]} Rdg8 {[%emt 0:01:08]} 17. a4 {[%emt 0:00:08]} Nf5 {[%emt 0:00:08]} 18. Kh2 {[%emt 0:00:37]} h5 {[%emt 0:01:27]} 19. e4 {[%emt 0:01:21]} dxe4 {[%emt 0:00:32]} 20. Bxe4 {[%emt 0:00:02]} Nd4 {[%emt 0:00:10]} 21. Nxd4 {[%emt 0:00:16]} exd4 {[%emt 0:00:56]} 22. Qf4 {[%emt 0:00:03]} Qd7 {[%emt 0:00:29]} 23. b5 {[%emt 0:00:09]} Bxh3 {[%emt 0:02:07]} 24. bxa6 {[%emt 0:00:09]} bxa6 {[%emt 0:00:04]} 25. Rab1 {[%emt 0:00:51]} h4 {[%emt 0:03:38]} 26. Bb7+ {[%emt 0:00:18]} Kd8 {[%emt 0:00:03]} 27. Qf6+ {[%emt 0:00:16]} Qe7 {[%emt 0:01:23]} 28. Qxe7+ {[%emt 0:00:26]} Kxe7 {[%emt 0:00:02]} 29. Kxh3 {[%emt 0:00:02]} hxg3+ {[%emt 0:00:07]} 30. Kg2 {[%emt 0:00:02]} Rh2+ {[%emt 0:00:04]} 31. Kg1 {[%emt 0:00:02]} Rxc2 {[%emt 0:00:44]} 32. Rbe1+ {[%emt 0:00:46]} Kf8 {[%emt 0:00:14]} 33. Bd5 {[%emt 0:00:11]} Rg7 {[%emt 0:00:11]} 34. Rf4 {[%emt 0:00:07]} c5 {[%emt 0:00:14]} 35. Ref1 {[%emt 0:00:16]} Ke7 {[%emt 0:01:16]} 36. Rxf7+ {[%emt 0:00:10]} Rxf7 {[%emt 0:00:04]} 37. Rxf7+ {[%emt 0:00:02]} Kd6 {[%emt 0:00:05]} 38. Bc4 {[%emt 0:00:01]} a5 {[%emt 0:00:18]} 39. Rg7 {[%emt 0:00:21]} Ke5 {[%emt 0:02:49]} 40. Rxg3 {[%emt 0:00:03]} Kf4 {[%emt 0:00:03]} 41. Rg2 {[%emt 0:00:02]} Rc1+ {[%emt 0:00:12]} 42. Kh2 {[%emt 0:00:02]} Ke3 {[%emt 0:02:29]} 43. Rg5 {[%emt 0:00:07]} Ra1 {[%emt 0:00:42]} 44. Re5+ {[%emt 0:01:21]} Kf4 {[%emt 0:01:13]} 45. Re4+ {[%emt 0:01:08]} Kf3 {[%emt 0:00:04]} 46. Bb5 {[%emt 0:00:11]} Ra2+ {[%emt 0:00:41]} 47. Kh3 {[%emt 0:00:04]} Ra1 {[%emt 0:00:20]} 48. Kh4 {[%emt 0:00:02]} Rg1 {[%emt 0:00:07]} 49. Bc6 {[%emt 0:00:30]} Kf2 {[%emt 0:00:04]} 50. Re5 {[%emt 0:00:08]} Rc1 {[%emt 0:00:04]} 51. Bb5 {[%emt 0:00:04]} Kf3 {[%emt 0:00:04]} 52. Kg5 {[%emt 0:00:05]} Rc3 {[%emt 0:00:09]} 53. Kf5 {[%emt 0:00:06]} Rc1 {[%emt 0:00:03]} 54. Ke6 {[%emt 0:00:02]} Ra1 {[%emt 0:00:06]} 55. Rxc5 {[%emt 0:00:02]} Ke3 {[%emt 0:00:02]} 56. Kd5 {[%emt 0:00:13]} Ra3 {[%emt 0:00:05]} 57. Rc8 {[%emt 0:00:03]} Rc3 {[%emt 0:00:07]} 58. Re8+ {[%emt 0:00:03]} Kd2 {[%emt 0:00:02]} 59. Kxd4 {[%emt 0:00:01]} 1-0